[Event "1st Semana Santa Torrevieja 2022"]
[Site "Torrevieja Alicante"]
[Date "2022.04.15"]
[Round "4.5"]
[White "Suarez Uriel, Adrian"]
[Black "Chatalbashev, Boris"]
[Result "1-0"]
[ECO "C41"]
[WhiteElo "2348"]
[BlackElo "2515"]
[Annotator "TA"]
[PlyCount "143"]
[EventDate "2022.04.12"]
[EventType "swiss"]
[EventCountry "ESP"]
[SourceTitle "playchess.com"]
[Source "ChessBase"]
[SourceQuality "1"]
[TimeControl "5400+30"]

{[%evp 14,143,0,0,-5,0,12,10,10,10,15,14,23,0,17,-8,-20,-18,-14,-5,0,0,0,-8,0,0,26,18,28,25,24,19,20,10,14,0,0,1,30,21,45,36,40,22,69,0,0,0,-4,-20,-2,0,138,141,116,68,222,217,193,156,252,183,262,177,206,202,190,123,125,125,118,134,193,180,166,121,293,291,379,367,370,356,475,431,12553,6638,12791,12796,12802,12791,12798,12608,12850,12838,29959,29960,29960,29961,29959,29960,29956,12802,12806,12766,12748,12793,10263,12766,12798,12791,12608,12124,6462,5273,12714,10289,10109,9197,5704,5504,29974,29975,29975,29976,29976,29977,29980,29981,29981,29982,29982,29983]} 1. e4 {[%emt 0:03:41]} g6 {[%emt 0:00:04]} 2. d4 {[%emt 0:00:04]} Bg7 {[%emt 0:00:05]} 3. Nf3 {[%emt 0:00:08]} d6 {[%emt 0:00:16]} 4. Nc3 {[%emt 0:00:05]} Nf6 {[%emt 0:00:20]} 5. Be3 {[%emt 0:00:05]} O-O {[%emt 0:00:17]} 6. Qd2 {[%emt 0:00:04]} e5 {[%emt 0:01:51]} 7. Bh6 {[%emt 0:11:40]} exd4 {[%emt 0:04:01]} 8. Nxd4 {[%emt 0:02:02]} Nxe4 {[%emt 0:18:20] C41: Philidor Defence.} 9. Nxe4 {[%emt 0:01:09] 0-0-0 is the strong threat.} Qh4 {[%emt 0:03:44][%csl LRe4,LRh6] [#]} 10. Bxg7 $146 {[%emt 0:14:30]} ({Predecessor:} 10. Bf4 Re8 11. Qe3 Bxd4 12. Nf6+ Qxf6 13. Qxe8+ Kg7 14. Qxc8 Bxb2 15. Be2 Qxf4 16. O-O Be5 17. g3 Qe4 18. Rae1 c5 19. Bb5 {1-0 (19) Beyer,C (2305)-Hoersch,H (2222) Wuerttemberg 2001}) 10... Qxe4+ {[%emt 0:00:06] The position is equal.} 11. Be2 {[%emt 0:00:01]} Kxg7 {[%emt 0:00:08]} 12. O-O-O {[%emt 0:00:03]} Nc6 {[%emt 0:02:15]} 13. Nxc6 {[%emt 0:08:55]} (13. Nb5 $5 {[%cal Rb5c7]}) 13... bxc6 {[%emt 0:01:21]} 14. h4 {[%emt 0:03:49]} Rb8 {[%emt 0:07:09]} 15. h5 $1 {[%emt 0:13:07]} Qe5 {[%emt 0:00:11][%csl Gb8][%cal Re5b2]} 16. c3 {[%emt 0:00:08]} g5 {[%emt 0:00:13]} 17. h6+ {[%emt 0:03:20]} Kh8 {[%emt 0:00:23]} 18. Bd3 {[%emt 0:00:02]} Be6 {[%emt 0:02:43]} 19. Rde1 {[%emt 0:00:50]} Qf4 {[%emt 0:15:17]} 20. Qxf4 {[%emt 0:03:34]} gxf4 {[%emt 0:01:49]} 21. Rh4 {[%emt 0:00:13]} Rg8 {[%emt 0:01:56]} 22. Be4 {[%emt 0:04:24]} c5 {[%emt 0:14:07]} 23. Rxf4 {[%emt 0:01:34]} Bxa2 {[%emt 0:00:06]} 24. Bb1 {[%emt 0:04:43]} Be6 {[%emt 0:07:25]} 25. g3 {[%emt 0:08:29]} Rge8 {[%emt 0:04:13]} 26. Ra4 {[%emt 0:01:58][%mdl 1024] White has compensation.} Rb7 {[%emt 0:01:15]} 27. f4 {[%emt 0:03:38] Strongly threatening f5.} Reb8 {[%emt 0:00:13]} 28. Re2 {[%emt 0:03:43]} (28. Bc2 $5 {[%cal Rf4f5]}) 28... Bg4 {[%emt 0:00:22]} (28... Rg8 $11) 29. Rf2 {[%emt 0:00:28] &Bianco is more active.} (29. Re7 $1 $14) 29... f5 {[%emt 0:01:45]} 30. Bd3 {[%emt 0:05:24]} Re8 {[%emt 0:01:38]} 31. Rf1 {[%emt 0:03:12]} c6 {[%emt 0:06:28]} 32. Ra6 {[%emt 0:00:06]} Re3 {[%emt 0:00:36] [#]} (32... Rc7 $11) 33. Rxc6 $1 $16 {[%emt 0:00:12]} Kg8 {[%emt 0:01:46]} 34. Rxd6 {[%emt 0:00:05]} (34. Bc4+ $16 Kf8 35. Rxd6) 34... Kf7 $2 {[%emt 0:00:14] [#]} (34... Be2 $14 35. Ba6 Bxa6 36. Rxa6 Rxg3) 35. Bc4+ $1 $18 {[%emt 0:00:16]} Ke7 {[%emt 0:00:02]} 36. Rd3 {[%emt 0:00:06]} Re2 {[%emt 0:04:56]} (36... Rxd3 $16 37. Re1+ (37. Bxd3 Rb6 $16) 37... Kd6 38. Bxd3 Re7 39. Rxe7 Kxe7) 37. b3 {[%emt 0:01:15]} a5 {[%emt 0:00:01]} (37... Bh5 $142 38. Rdd1 Re4) 38. Rdd1 {[%emt 0:00:48]} Re4 {[%emt 0:00:45]} 39. Bd5 {[%emt 0:00:17]} Rb6 {[%emt 0:00:47] [#]} 40. Bxe4 {[%emt 0:00:05]} ({White should try} 40. Rde1 $1 $18 Rxe1+ 41. Rxe1+ Kd7 42. Rh1) 40... Bxd1 $16 {[%emt 0:00:06]} 41. Rxd1 {[%emt 0:01:24]} fxe4 $18 {[%emt 0:00:02][%mdl 4096] Endgame KR-KR} 42. Re1 {[%emt 0:00:05]} Rxh6 {[%emt 0:01:35]} (42... Rxb3 $16 {was called for.} 43. Rxe4+ Kd7) 43. Rxe4+ {[%emt 0:00:04]} Kd6 {[%emt 0:00:01]} 44. Kd2 {[%emt 0:00:46] Hoping for Kd3.} Rg6 $2 {[%emt 0:00:44]} (44... Rh3 $16 {keeps fighting.}) 45. Re3 {[%emt 0:00:05]} h5 {[%emt 0:00:13]} 46. Kd3 {[%emt 0:00:14]} Rg4 {[%emt 0:00:20]} 47. Rf3 {[%emt 0:00:23]} Kd5 {[%emt 0:00:35]} 48. f5 {[%emt 0:00:52][%cal Bf4f5,Bf5f6,Bf6f7][%mdl 32]} c4+ {[%emt 0:01:06]} (48... Rg7 $142 49. f6 Rf7 50. Rf5+ Ke6 51. Rxh5 Kxf6 52. Rxc5 Ra7) 49. bxc4+ {[%emt 0:00:01]} Rxc4 {[%emt 0:00:04]} 50. f6 {[%emt 0:00:03] White threatens Rf5+ and mate.} Rc8 {[%emt 0:00:05]} 51. f7 {[%emt 0:00:25]} Rf8 {[%emt 0:00:04]} 52. c4+ {[%emt 0:01:06]} Ke6 {[%emt 0:00:17]} 53. Kd4 {[%emt 0:01:19]} a4 {[%emt 0:01:41]} 54. Kc3 {[%emt 0:00:08]} Ke5 {[%emt 0:00:58]} 55. Kb4 {[%emt 0:00:19]} Kd4 {[%emt 0:00:01]} 56. Rf4+ {[%emt 0:00:14]} Ke5 {[%emt 0:00:20]} 57. Rf2 {[%emt 0:01:30]} (57. Kxa4 $142 h4 58. Rxh4 Rxf7 59. Kb5 Kd6 60. Kb6 Rf6 61. c5+ Kd5+ 62. Kb5) 57... Kd4 {[%emt 0:00:07]} 58. Rf5 {[%emt 0:01:42]} a3 {[%emt 0:00:31]} 59. Rf4+ {[%emt 0:00:03]} Ke5 {[%emt 0:00:17]} 60. Kxa3 {[%emt 0:00:03] Threatening mate with Ka4.} h4 {[%emt 0:00:05]} 61. Rxh4 {[%emt 0:00:05] Intending Rf4 and mate.} Rxf7 {[%emt 0:00:04]} 62. Kb4 {[%emt 0:00:14]} Kd6 {[%emt 0:00:44]} 63. Rh6+ {[%emt 0:00:07]} (63. g4 Rb7+ 64. Ka4 Ra7+ 65. Kb3 Rg7 $16) 63... Kc7 {[%emt 0:00:08]} 64. Rg6 {[%emt 0:00:03]} ({Not} 64. g4 Rg7 $16) 64... Rf5 {[%emt 0:00:25]} 65. g4 {[%emt 0:00:04][%cal Bg3g4,Bg4g5,Bg5g6,Bg6g7][%mdl 32]} Re5 {[%emt 0:00:03]} 66. g5 {[%emt 0:00:09]} Rf5 {[%emt 0:00:18]} 67. Rg8 {[%emt 0:00:05] White mates.} Kb7 {[%emt 0:00:37]} 68. g6 {[%emt 0:00:06]} Rg5 {[%emt 0:00:04]} 69. g7 {[%emt 0:00:03]} Ka7 {[%emt 0:00:09]} 70. c5 {[%emt 0:00:08][%cal Bc4c5,Bc5c6][%mdl 32]} Kb7 {[%emt 0:00:35]} 71. c6+ {[%emt 0:00:05]} Kc7 {[%emt 0:00:34]} 72. Ra8 {[%emt 0:00:05] Weighted Error Value: White=0.12 (very precise) /Black=0.41} 1-0

[Event "1st Semana Santa Torrevieja 2022"]
[Site "Torrevieja Alicante"]
[Date "2022.04.15"]
[Round "4.6"]
[White "Nasuta, Grzegorz"]
[Black "Granero Roca, Antonio"]
[Result "1/2-1/2"]
[ECO "C45"]
[WhiteElo "2530"]
[BlackElo "2356"]
[Annotator "TA"]
[PlyCount "191"]
[EventDate "2022.04.12"]
[EventType "swiss"]
[EventCountry "ESP"]
[SourceTitle "playchess.com"]
[Source "ChessBase"]
[SourceQuality "1"]
[TimeControl "5400+30"]

{[%evp 12,191,3,20,39,35,37,34,41,27,32,32,35,33,36,0,50,38,46,38,54,26,23,23,18,14,15,7,25,0,0,7,5,4,6,0,0,0,1,0,0,0,0,0,0,0,0,0,0,0,11,17,25,8,13,0,0,0,0,0,16,0,0,0,10,10,10,0,0,0,0,0,0,0,0,0,6,6,6,0,0,0,0,0,0,0,0,0,-28000,-28000,-28000,-28000,-28000,-28000,-28000,-28000,-28000,-28000,-28000,-28000,-28000,-28000,-28000,-28000,-28000,-28000,-28000,-28000,-28000,-28000,-28000,-28000,-28000,-28000,-28000,-28000,-28000,-28000,-28000,-28000,-28000,-28000,-28000,-28000,-28000,-28000,-28000,-28000,-28000,-28000,-28000,-28000,-28000,-28000,-28000,-28000,-28000,-28000,-28000,-28000,-28000,-28000,-28000,-28000,-28000,-28000,-28000,-28000,-28000,-28000,-28000,-28000,-28000,-28000,-28000,-28000,-28000,-28000,-28000,-28000,-28000,-28000,-28000,-28000,-28000,-28000,-28000,-28000,-28000,-28000,-28000,-28000,-28000,-28000,-28000,-28000,-28000,-28000,-28000,-28000,-28000,-28000]} 1. e4 {[%emt 0:00:02]} e5 {[%emt 0:00:39]} 2. Nf3 {[%emt 0:00:06]} Nc6 {[%emt 0:00:21]} 3. d4 {[%emt 0:00:13]} exd4 {[%emt 0:00:34]} 4. Nxd4 {[%emt 0:00:06]} Bc5 {[%emt 0:01:10]} 5. Nb3 {[%emt 0:00:22]} Bb6 {[%emt 0:00:45]} 6. Nc3 {[%emt 0:00:07]} d6 {[%emt 0:02:34]} 7. Qe2 {[%emt 0:00:44]} Be6 {[%emt 0:02:52] 7...a5 is becoming the main line. C45: Scotch Game.} 8. Be3 {[%emt 0:01:08]} Nf6 {[%emt 0:04:17]} 9. O-O-O {[%emt 0:05:45]} Qe7 {[%emt 0:01:31] White is slightly better.} 10. Bxb6 {[%emt 0:15:17]} axb6 {[%emt 0:00:48]} 11. g3 {[%emt 0:00:16]} O-O {[%emt 0:06:06]} 12. Bg2 {[%emt 0:00:41]} Rfe8 {[%emt 0:07:23] [#]} 13. Kb1 $146 {[%emt 0:14:37]} ({Predecessor:} 13. a3 Na5 14. Nxa5 bxa5 15. Qd2 Rab8 16. Rhe1 Bd7 17. a4 Qe5 18. f3 Bc6 19. Bf1 {½-½ (30) Kudr,R (2259)-Glaser,K (2227) ICCF email 2016}) 13... Bxb3 {[%emt 0:10:10]} (13... Ne5 $11) 14. cxb3 $14 {[%emt 0:00:18]} d5 {[%emt 0:00:29][%cal Rd5e4] [#]} 15. exd5 $1 {[%emt 0:00:37]} Nxd5 {[%emt 0:06:27]} (15... Qxe2 16. Nxe2) 16. Bxd5 {[%emt 0:08:21]} Qxe2 {[%emt 0:01:09]} 17. Nxe2 {[%emt 0:00:05]} Rxe2 {[%emt 0:00:10]} 18. Rhf1 {[%emt 0:00:03][%cal Ob3b4]} Kf8 {[%emt 0:02:56]} 19. Bf3 {[%emt 0:00:47]} Re7 {[%emt 0:00:38]} 20. Rd2 {[%emt 0:11:31]} Rd8 {[%emt 0:03:58]} 21. Rxd8+ {[%emt 0:00:47]} Nxd8 $11 {[%emt 0:00:07][%mdl 4096] Endgame KRB-KRN} 22. Rd1 {[%emt 0:08:50]} Ke8 {[%emt 0:00:46]} 23. b4 {[%emt 0:00:31]} c6 {[%emt 0:00:40]} 24. Kc2 {[%emt 0:02:57]} Re5 {[%emt 0:02:11]} 25. h4 {[%emt 0:08:14]} Ne6 {[%emt 0:01:03]} 26. Rd2 {[%emt 0:00:43]} Ke7 {[%emt 0:00:56]} 27. Kc3 {[%emt 0:02:43]} g6 {[%emt 0:01:47]} 28. a3 {[%emt 0:03:05]} h6 {[%emt 0:00:57]} 29. Re2 {[%emt 0:00:32]} Rxe2 {[%emt 0:01:39]} 30. Bxe2 {[%emt 0:00:01] KB-KN} f5 {[%emt 0:01:02]} 31. b5 {[%emt 0:01:25]} Kd6 {[%emt 0:01:07]} 32. Bf3 {[%emt 0:01:25]} g5 {[%emt 0:00:50]} 33. hxg5 {[%emt 0:02:15]} hxg5 {[%emt 0:00:07]} 34. Kd3 {[%emt 0:02:03]} Nc5+ {[%emt 0:02:55]} 35. Kc4 {[%emt 0:00:55]} Nd7 {[%emt 0:00:37] [#] ...Ne5+ is the strong threat.} 36. Bg2 {[%emt 0:01:47]} Ne5+ {[%emt 0:00:44]} 37. Kd4 {[%emt 0:00:37]} f4 {[%emt 0:11:52]} 38. gxf4 {[%emt 0:03:48]} gxf4 {[%emt 0:00:10]} 39. bxc6 {[%emt 0:02:06]} bxc6 {[%emt 0:00:16][%cal Bb7c6,Bc6c5][%mdl 32]} 40. Bf1 {[%emt 0:03:15]} Nf3+ {[%emt 0:05:13]} 41. Kd3 {[%emt 0:01:08]} Ke5 {[%emt 0:01:09]} 42. Bh3 {[%emt 0:00:21]} c5 {[%emt 0:00:51]} 43. Bc8 {[%emt 0:00:33]} Nd4 {[%emt 0:01:19]} 44. Kc4 {[%emt 0:00:44]} Kd6 {[%emt 0:02:21]} 45. b4 {[%emt 0:00:28]} b5+ {[%emt 0:07:35]} 46. Kd3 {[%emt 0:00:05]} Nc6 {[%emt 0:00:15]} 47. bxc5+ {[%emt 0:00:35]} Kxc5 {[%emt 0:00:07]} 48. Ke4 $2 {[%emt 0:00:21][%mdl 8192]} (48. Bf5 $11) 48... b4 {[%emt 0:00:05]} 49. axb4+ {[%emt 0:00:29]} Nxb4 {[%emt 0:00:15] Black continues to play with concentration.} 50. Bf5 {[%emt 0:00:26] Mate.} Kd6 {[%emt 0:01:02]} 51. Kxf4 {[%emt 0:00:06]} Nd5+ {[%emt 0:00:37]} 52. Ke4 {[%emt 0:00:27]} Nf6+ {[%emt 0:00:11]} 53. Kd4 {[%emt 0:00:04]} Ng8 {[%emt 0:01:50]} 54. Bh3 {[%emt 0:01:19]} Nf6 {[%emt 0:00:11]} 55. Bc8 {[%emt 0:00:06]} Ne8 {[%emt 0:02:40]} 56. Ke4 {[%emt 0:00:13]} Ke7 {[%emt 0:00:16]} 57. Ke5 {[%emt 0:00:06]} Nd6 {[%emt 0:00:21]} 58. Bh3 {[%emt 0:00:14]} Nc4+ {[%emt 0:00:17]} 59. Kf5 {[%emt 0:00:09]} Nd6+ {[%emt 0:00:13]} 60. Kg6 {[%emt 0:00:16]} Kf8 {[%emt 0:00:15]} 61. Bg2 {[%emt 0:00:43]} Nc4 {[%emt 0:00:24]} 62. Kf6 {[%emt 0:00:13]} Nb2 {[%emt 0:00:36]} 63. Be4 {[%emt 0:02:14]} Nd1 {[%emt 0:00:10]} 64. f3 {[%emt 0:00:31]} Ne3 {[%emt 0:00:13]} 65. f4 {[%emt 0:00:55]} Nc4 {[%emt 0:00:40]} 66. Ke6 {[%emt 0:00:19]} Ne3 {[%emt 0:01:02]} 67. Bf3 {[%emt 0:00:30]} Nf1 {[%emt 0:00:48]} 68. Kd5 {[%emt 0:00:47]} Ke7 {[%emt 0:00:33]} 69. Ke5 {[%emt 0:00:14]} Ne3 {[%emt 0:00:39]} 70. Ke4 {[%emt 0:00:48]} Nc4 {[%emt 0:00:21]} 71. Kf5 {[%emt 0:00:04]} Nd6+ {[%emt 0:00:29]} 72. Kg6 {[%emt 0:00:08]} Kf8 {[%emt 0:00:09]} 73. Bd5 {[%emt 0:00:25]} Nb5 {[%emt 0:00:13]} 74. Kf6 {[%emt 0:00:16]} Nd4 {[%emt 0:00:46]} 75. Bc4 {[%emt 0:00:06]} Nc2 {[%emt 0:00:15]} 76. Bd3 {[%emt 0:00:39]} Ne3 {[%emt 0:00:25]} 77. Be4 {[%emt 0:00:03]} Nc4 {[%emt 0:00:26]} 78. Ke6 {[%emt 0:00:14]} Ne3 {[%emt 0:00:18]} 79. Bf3 {[%emt 0:00:13]} Nf1 {[%emt 0:00:29]} 80. Kf6 {[%emt 0:01:10]} Ne3 {[%emt 0:00:10]} 81. Ke5 {[%emt 0:01:09]} Ke7 {[%emt 0:00:14]} 82. Be2 {[%emt 0:00:29]} Ng2 {[%emt 0:00:30]} 83. f5 {[%emt 0:00:06]} Ne3 {[%emt 0:00:11]} 84. f6+ {[%emt 0:00:04]} Kf8 {[%emt 0:00:16]} 85. Bf3 {[%emt 0:00:31]} Nf1 {[%emt 0:00:15]} 86. Bh5 {[%emt 0:00:44]} Ne3 {[%emt 0:00:20]} 87. Ke4 {[%emt 0:00:07]} Nc4 {[%emt 0:00:23]} 88. Kd4 {[%emt 0:00:08]} Nd6 {[%emt 0:00:18]} 89. Kd5 {[%emt 0:00:06]} Nf5 {[%emt 0:00:23]} 90. Bg6 {[%emt 0:00:34]} Ne3+ {[%emt 0:00:23]} 91. Ke6 {[%emt 0:00:12]} Ng4 {[%emt 0:00:03]} 92. f7 {[%emt 0:00:14]} Nh6 {[%emt 0:00:05]} 93. Kf6 {[%emt 0:00:04]} Ng4+ {[%emt 0:00:17]} 94. Kf5 {[%emt 0:00:20]} Nh6+ {[%emt 0:00:09]} 95. Ke6 {[%emt 0:00:04]} Nxf7 {[%emt 0:00:08]} 96. Bxf7 {[%emt 0:00:06][%mdl 32768] Weighted Error Value: White=0.04 (flawless) /Black=0.03 (flawless) . An unexpected result.} 1/2-1/2

[Event "1st Semana Santa Torrevieja 2022"]
[Site "Torrevieja Alicante"]
[Date "2022.04.15"]
[Round "4.7"]
[White "Alonso Garcia, Aaron"]
[Black "Vasquez Schroeder, Rodrigo"]
[Result "1/2-1/2"]
[ECO "B90"]
[WhiteElo "2374"]
[BlackElo "2493"]
[Annotator "TA"]
[PlyCount "88"]
[EventDate "2022.04.12"]
[EventType "swiss"]
[EventCountry "ESP"]
[SourceTitle "playchess.com"]
[Source "ChessBase"]
[SourceQuality "1"]
[TimeControl "5400+30"]

{[%evp 15,88,12,23,32,23,13,14,26,32,15,28,14,33,0,55,58,68,58,70,60,72,74,78,79,70,64,76,75,82,46,49,11,25,0,10,0,8,0,4,0,30,30,30,30,30,30,29,0,30,-102,-89,-229,0,-12,0,-229,4,29,40,40,75,14,0,0,72,54,69,79,96,70,220,211,204,50,53]} 1. e4 {[%emt 0:07:40]} c5 {[%emt 0:00:15]} 2. Nf3 {[%emt 0:00:18]} d6 {[%emt 0:00:07]} 3. d4 {[%emt 0:00:47]} cxd4 {[%emt 0:00:09]} 4. Nxd4 {[%emt 0:00:02]} Nf6 {[%emt 0:00:06]} 5. Nc3 {[%emt 0:00:03]} a6 {[%emt 0:00:07]} 6. f3 {[%emt 0:00:03]} e5 {[%emt 0:00:07]} 7. Nb3 {[%emt 0:00:03]} Be6 {[%emt 0:00:17]} 8. Be3 {[%emt 0:00:05]} h5 {[%emt 0:00:19]} 9. Nd5 {[%emt 0:00:06] B90: Sicilian Najdorf: Unusual White 6th moves, 6 Be3 Ng4 and 6 Be3 e5.} Bxd5 {[%emt 0:00:15]} 10. exd5 {[%emt 0:00:06]} Nbd7 {[%emt 0:00:08]} 11. Qd2 {[%emt 0:00:04] The position is equal.} Qc7 {[%emt 0:00:25]} 12. c4 {[%emt 0:03:40]} g6 {[%emt 0:01:31]} 13. Be2 {[%emt 0:00:16]} a5 {[%emt 0:05:22]} 14. Rc1 {[%emt 0:01:21] seems to push 14.Rd1 aside.} b6 {[%emt 0:02:08]} (14... a4 $11 15. Na1 Qa5) 15. O-O $14 {[%emt 0:06:28]} Bg7 {[%emt 0:00:33]} 16. Na1 $1 {[%emt 0:03:58] &Bianco is more active.} O-O {[%emt 0:06:06]} 17. Nc2 {[%emt 0:02:03]} Nc5 {[%emt 0:00:49]} 18. Na3 {[%emt 0:05:15]} h4 {[%emt 0:04:38]} 19. Nb5 {[%emt 0:00:32]} Qd7 {[%emt 0:00:38]} 20. b3 {[%emt 0:12:28] [#]} Nh5 $146 {[%emt 0:03:01]} ({Predecessor:} 20... h3 21. g3 Rfe8 22. Rb1 Re7 23. a3 a4 24. b4 Nb3 25. Qa2 Rae8 26. Nc3 Nd4 {1-0 (43) Kuznetsov,A (2417)-Klauner,T (2475) ICCF email 2011}) 21. Bg5 {[%emt 0:02:22]} Bf6 {[%emt 0:12:25]} 22. Bxf6 {[%emt 0:12:02]} Nxf6 {[%emt 0:00:07]} 23. Qe3 {[%emt 0:01:47]} Nh5 $1 {[%emt 0:01:43] Inhibits f4.} 24. Rfd1 {[%emt 0:00:04]} (24. Qh6 {with more complications.} Rfd8 25. Rc3 Qf5 26. Bd1) 24... Qe7 {[%emt 0:02:49]} 25. Bf1 {[%emt 0:01:30]} (25. Qh6 {feels hotter.} Qf6 26. Rc3 Rfc8 27. Bf1) 25... Nf4 {[%emt 0:07:16]} 26. a3 {[%emt 0:03:10][%cal Ba2a3,Ba3b4][%mdl 32]} Kg7 {[%emt 0:11:29]} 27. b4 {[%emt 0:01:20]} axb4 {[%emt 0:00:49]} 28. axb4 {[%emt 0:00:02]} Nd7 {[%emt 0:00:28]} 29. Ra1 {[%emt 0:05:04]} Qf6 {[%emt 0:02:38]} 30. Nc3 {[%emt 0:05:01]} Qe7 {[%emt 0:07:14]} 31. Nb5 {[%emt 0:03:46]} Rfc8 {[%emt 0:03:14]} 32. Na7 {[%emt 0:02:19]} (32. Kf2 $11) 32... Qg5 $1 $17 {[%emt 0:01:07] ...Nh3+ is the strong threat.} 33. Kf2 {[%emt 0:04:23] [#]} (33. Kh1 $17 Rxc4 34. Nb5 Rxa1 35. Rxa1) 33... Rc7 $2 {[%emt 0:08:06]} (33... Rxc4 $1 $19 {[%mdl 512]} 34. Bxc4 Qxg2+ 35. Ke1 Qxh2) 34. Nc6 {[%emt 0:01:01]} Rcc8 {[%emt 0:02:12]} (34... Re8 $11) 35. Na7 $1 $19 {[%emt 0:03:15] [#]} Rh8 {[%emt 0:00:57]} (35... Rxc4 $1 $19 {[%mdl 512]} 36. Bxc4 Qxg2+ 37. Ke1 Qxh2) 36. Nb5 $11 {[%emt 0:01:33]} Qf6 {[%emt 0:00:11]} (36... h3 $2 37. g3 $18) (36... Rxa1 37. Rxa1 Rd8 38. Ra3 $16 (38. Nxd6 Qe7 $14)) 37. Qc3 {[%emt 0:02:16]} g5 {[%emt 0:01:43][%cal Og5g4]} ({Not} 37... h3 38. g3 $16) ({Much less strong is} 37... Rxa1 38. Rxa1 Rb8 39. Ra6 $16) 38. Rxa8 {[%emt 0:02:51]} (38. Kg1 $16) 38... Rxa8 {[%emt 0:00:09]} 39. Ra1 {[%emt 0:00:01]} Rd8 {[%emt 0:02:44]} (39... Rxa1 $11 40. Qxa1 g4) 40. Kg1 $16 {[%emt 0:01:06]} Qg6 {[%emt 0:03:23]} 41. Qe3 $36 {[%emt 0:02:35][%mdl 2048] White is on the roll.} f5 {[%emt 0:13:15]} 42. Ra7 {[%emt 0:08:44] Threatens to win with Qxb6.} Kh6 {[%emt 0:00:30]} ({Better is} 42... g4 $1 $14) 43. Rc7 $18 {[%emt 0:00:30][%cal Ob5d6] Black must now prevent Nxd6!} e4 {[%emt 0:00:30] [#]} 44. Rc6 $2 {[%emt 0:00:30]} (44. fxe4 $1 $18 Ne5 45. Qxb6 (45. exf5 Qxf5 46. Nd4 Qb1 $11)) 44... Ne5 {[%emt 0:00:30] Weighted Error Value: White=0.25 (precise) /Black=0.30} 1/2-1/2

[Event "1st Semana Santa Torrevieja 2022"]
[Site "Torrevieja Alicante"]
[Date "2022.04.15"]
[Round "4.8"]
[White "Sochacki, Christophe"]
[Black "Habans Aguerrea, Javier"]
[Result "0-1"]
[ECO "B50"]
[WhiteElo "2485"]
[BlackElo "2340"]
[Annotator "TA"]
[PlyCount "90"]
[EventDate "2022.04.12"]
[EventType "swiss"]
[EventCountry "ESP"]
[SourceTitle "playchess.com"]
[Source "ChessBase"]
[SourceQuality "1"]
[TimeControl "5400+30"]

{[%evp 14,90,17,10,10,7,18,14,26,17,22,27,26,20,49,52,85,-10,38,4,3,2,0,4,0,6,25,-10,-18,-12,-16,-61,-54,-46,-39,-60,-78,-72,-64,-265,-277,-277,-277,-260,-278,-278,-278,-278,-205,-195,-157,-445,-447,-432,-210,-427,-438,-431,-439,-551,-529,-529,-514,-526,-519,-507,-417,-417,-417,-448,-307,-310,-285,-395,-408,-402,-374,-967,-922]} 1. e4 {[%emt 0:00:07]} c5 {[%emt 0:00:06]} 2. Nf3 {[%emt 1:31:23]} d6 {[%emt 0:10:59]} 3. c3 {[%emt 0:00:00]} Nf6 {[%emt 0:00:06]} 4. Be2 {[%emt 0:00:00]} Nbd7 {[%emt 0:02:05]} 5. d3 {[%emt 0:00:00]} g6 {[%emt 0:00:58]} 6. O-O {[%emt 0:00:00]} Bg7 {[%emt 0:00:06]} 7. Re1 {[%emt 0:00:00]} O-O {[%emt 0:02:59]} 8. Bf1 {[%emt 0:00:00]} e5 {[%emt 0:04:56] B50: Sicilian: 2...d6, Miscellaneous.} 9. d4 {[%emt 0:00:00]} exd4 {[%emt 0:07:38]} 10. cxd4 {[%emt 0:00:00]} cxd4 {[%emt 0:00:07] The position is equal.} 11. Nxd4 {[%emt 0:00:00]} Re8 {[%emt 0:00:11]} 12. Nc3 {[%emt 0:00:00]} a6 {[%emt 0:01:55] Inhibits Ndb5.} 13. Bg5 {[%emt 0:00:00] [#]} h6 $146 {[%emt 0:00:32]} ({Predecessor:} 13... Qa5 14. Bh4 b5 15. Nc6 Qb6 16. Nb4 Bb7 17. Qd2 Nxe4 18. Nxe4 Bxe4 19. Rad1 a5 {1-0 (61) Goryachkina,A (2579)-Obolentseva,A (2305) Moscow 2020}) 14. Bh4 {[%emt 0:00:00]} Nc5 {[%emt 0:07:37]} 15. b4 {[%emt 0:00:00] [#]} (15. f3 $16) 15... Ne6 {[%emt 0:07:34]} (15... g5 $1 $11 {was preferrable.} 16. bxc5 dxc5 17. Bxg5 hxg5) 16. Nxe6 {[%emt 0:00:00]} Bxe6 {[%emt 0:01:04]} 17. Rc1 {[%emt 0:00:00]} Qb6 {[%emt 0:08:17]} 18. a3 {[%emt 0:00:00]} Rac8 {[%emt 0:06:52]} 19. Qd2 {[%emt 0:00:00]} Ng4 {[%emt 0:04:47]} 20. Na4 {[%emt 0:00:00]} (20. h3 $5 {[%cal Rh3g4]} Qd4 21. Qxd4 Bxd4 22. Ne2 $11) 20... Qd4 {[%emt 0:01:00]} 21. Qxd4 {[%emt 0:00:00]} Bxd4 {[%emt 0:00:05]} 22. h3 {[%emt 0:00:00]} Rxc1 {[%emt 0:13:46]} 23. Rxc1 {[%emt 0:00:00]} Ne5 {[%emt 0:00:10]} 24. Rd1 {[%emt 0:00:00]} Nc6 {[%emt 0:00:06]} 25. b5 {[%emt 0:00:00]} Bb3 {[%emt 0:00:07][%csl LRa4,LRd1,LRe4]} 26. Rd2 {[%emt 0:00:00]} (26. Rd3 $15 axb5 27. Rxb3 bxa4 28. Rxb7) 26... axb5 $19 {[%emt 0:03:59]} (26... Bxa4 27. bxc6 Bc3 28. Rd3 $16 (28. Rxd6 Bxc6 29. f3 Be5 $11)) 27. Bxb5 {[%emt 0:00:00][%cal Od2d4] And now Rxd4! would win.} Rxe4 {[%emt 0:00:02]} 28. Bg3 {[%emt 0:00:00] [#]} Na7 $1 {[%emt 0:08:41]} 29. Bd7 {[%emt 0:00:00]} Nc6 {[%emt 0:00:05]} 30. Nb2 {[%emt 0:00:00]} d5 {[%emt 0:03:33][%cal Bd6d5,Bd5d4,Bd4d3][%mdl 32]} 31. Rd3 {[%emt 0:00:00]} Ba2 {[%emt 0:01:35]} ({Stronger than} 31... Bxb2 32. Rxb3 Be5 33. Bxe5 Nxe5 34. Rxb7 $11) 32. Nd1 $2 {[%emt 0:01:04] Loses the game.} (32. Kh2 $17 {was the only defense.}) 32... Ne5 {[%emt 0:00:34]} 33. Bxe5 {[%emt 0:01:39]} Re1+ {[%emt 0:00:09]} ({But not} 33... Bxe5 $2 34. Re3 $19) 34. Kh2 {[%emt 0:00:05]} Bxe5+ {[%emt 0:00:06]} 35. g3 {[%emt 0:00:32]} d4 {[%emt 0:01:01] ...Bd5 is the strong threat.} 36. f4 {[%emt 0:00:53]} Re2+ {[%emt 0:01:11]} 37. Nf2 {[%emt 0:01:10] [#]} Bc4 $1 {[%emt 0:01:12]} 38. Rd1 {[%emt 0:01:07]} (38. Kg1 Bxd3) 38... Rxf2+ {[%emt 0:01:58]} 39. Kg1 {[%emt 0:00:01]} Re2 {[%emt 0:00:11]} 40. fxe5 {[%emt 0:00:03][%mdl 4096] Endgame KRB-KRB} d3 {[%emt 0:00:06]} 41. Bg4 {[%emt 0:01:17]} Rxe5 {[%emt 0:00:38]} 42. Kf2 {[%emt 0:00:27]} b5 {[%emt 0:00:42]} 43. Bf3 {[%emt 0:00:43]} Re6 {[%emt 0:00:59]} 44. Rc1 {[%emt 0:00:15]} Ra6 {[%emt 0:00:50]} 45. Rc3 $2 {[%emt 0:00:12]} (45. Ra1) 45... Rf6 {[%emt 0:00:18] Weighted Error Value: White=0.44/Black=0.19 (very precise)} 0-1